bitfinex/quotes_SOLUSD_20250924
["timestamp","ask_amount","ask_price","bid_price","bid_amount"]
[1758750442215,3.42674944,212.15,212.13,4.71405292]
[1758750442393,4.04674944,212.15,212.13,4.71405292]
[1758750442995,3.42674944,212.14,212.13,4.71405292]
[1758750443202,6.60308405,212.14,212.12,11.7855161]
[1758750443419,3.17633461,212.13,212.12,11.7855161]
[1758750443590,3.17633461,212.13,212.11,4.71453491]
[1758750443916,3.42674944,212.14,212.11,5.36453491]
[1758750444103,6.60237325,212.13,212.11,4.71453491]
[1758750444406,3.42674944,212.14,212.11,4.71453491]
[1758750444813,3.42674944,212.14,212.12,5.36417928]
[1758750445407,3.17523386,212.13,212.12,5.36417928]
[1758750446098,3.17523386,212.13,212.11,4.71453491]
[1758750446303,3.42674944,212.14,212.11,4.71453491]
[1758750446504,3.17476403,212.13,212.11,5.36453491]
[1758750446709,3.42674944,212.14,212.11,5.36453491]
[1758750446907,3.17476403,212.13,212.11,5.36453491]
[1758750447216,3.42674944,212.14,212.11,5.36453491]
[1758750447403,3.17440819,212.13,212.11,5.36453491]
[1758750447607,3.42674944,212.14,212.11,5.36453491]
[1758750447803,3.17440524,212.13,212.11,5.36453491]
[1758750448102,3.42674944,212.14,212.11,5.36453491]
[1758750448306,3.1743877,212.13,212.11,5.36453491]
[1758750448514,3.42674944,212.14,212.11,5.36453491]
[1758750448721,3.17410101,212.13,212.11,5.36453491]
[1758750448892,3.42674944,212.14,212.11,5.36453491]
[1758750449089,3.17410067,212.13,212.11,5.36453491]
[1758750449303,3.42674944,212.14,212.11,5.36453491]
[1758750449618,3.1735573,212.13,212.11,5.36453491]
[1758750449820,3.42674944,212.14,212.11,5.36453491]
[1758750450018,3.17355613,212.13,212.12,5.36431265]
[1758750450899,3.17355613,212.13,212.12,4.71431265]
[1758750451221,3.42674944,212.14,212.12,4.71431265]
[1758750451425,3.42674944,212.14,212.12,0.65]
[1758750452597,2.19369099,212.14,212.12,5.36418903]
[1758750452915,45.58229557,212.13,212.1,3.42674944]
[1758750453088,2.19369099,212.11,212.1,3.42674944]
[1758750453291,5.98579409,212.11,212.06,4.71564651]
[1758750453492,2.19369099,212.09,212.06,5.36564651]
[1758750454290,2.19369099,212.09,212.06,4.71564651]
[1758750454291,2.81369099,212.09,212.06,4.71564651]
[1758750454517,2.19369099,212.08,212.05,16.50513401]
[1758750454814,2.19369099,212.08,212.05,17.15513401]
[1758750455191,16.37574124,212.08,212.05,17.15513401]
[1758750458201,14.18205025,212.08,212.07,4.71542415]
[1758750458727,16.99574124,212.08,212.07,4.71542415]
[1758750459321,16.99574124,212.08,212.05,16.50513401]
[1758750459500,2.81369099,212.07,212.05,16.50513401]
[1758750460722,0.62,212.07,212.05,16.50513401]
[1758750460902,2.19369099,212.07,212.05,16.50513401]
[1758750461424,2.19369099,212.07,212.05,17.15513401]
[1758750461625,2.19369099,212.07,212.05,16.50513401]
[1758750463615,16.37574124,212.08,212.07,4.71542415]
[1758750465209,16.99574124,212.08,212.05,16.50513401]
[1758750465528,2.81369099,212.07,212.05,16.50513401]
[1758750465827,2.19369099,212.07,212.05,16.50513401]
[1758750466014,2.19369099,212.06,212.05,4.71586889]
[1758750466427,16.37708224,212.06,212.05,4.71586889]
[1758750467818,16.99708224,212.06,212.05,4.71586889]
[1758750469333,16.37708224,212.06,212.05,4.71586889]
[1758750470134,16.99708224,212.06,212.04,4.81601988]
[1758750470325,16.409285,212.05,212.04,0.1]
[1758750471133,28.39898526,212.05,212.04,0.1]
[1758750471319,30.59267625,212.05,212.04,0.1]
[1758750472029,30.59267625,212.05,211.97,0.1]
[1758750472030,13.59559401,212.01,211.97,0.1]
[1758750472336,15.789285,211.98,211.97,0.1]
[1758750473131,17.68129834,211.98,211.97,0.1]
[1758750475315,15.48760735,211.98,211.97,4.81764872]
[1758750475519,17.68129834,211.98,211.97,4.81764872]
[1758750479630,17.68129834,211.98,211.97,5.50764872]
[1758750479944,17.68129834,211.98,211.97,4.81764872]
[1758750481029,53.78129834,211.98,211.97,4.81764872]
[1758750482044,17.68129834,211.98,211.97,4.81764872]
[1758750482547,53.78129834,211.98,211.97,4.81764872]
[1758750484133,53.78129834,211.98,211.97,0.1]
[1758750484447,54.40129834,211.98,211.97,0.1]
[1758750484644,80.40129834,211.98,211.97,0.1]
[1758750486245,43.68129834,211.98,211.97,0.1]
[1758750486430,79.78129834,211.98,211.97,0.1]
[1758750486635,43.68129834,211.98,211.97,0.1]
[1758750486836,79.78129834,211.98,211.97,0.1]
[1758750487337,78.20760735,211.98,211.97,0.1]
[1758750487543,43.68129834,211.98,211.97,0.82]
[1758750487749,79.78129834,211.98,211.97,5.53764872]
[1758750488653,79.78129834,211.98,211.97,4.81764872]
[1758750490858,43.68129834,211.98,211.97,4.81764872]
[1758750491041,43.68129834,211.98,211.97,5.53764872]
[1758750492647,4.08570433,211.98,211.97,5.53764872]
[1758750492849,1.17201334,211.98,211.97,5.53764872]
[1758750493049,2.19369099,212.02,211.97,17.33177052]
[1758750493258,2.19369099,212.02,211.98,0.72]
[1758750493642,26.0,212.01,211.98,0.72]
[1758750494355,2.19369099,212.02,212.0,4.71698113]
[1758750494559,26.0,212.01,212.0,4.71698113]
[1758750494943,2.19369099,212.01,212.0,16.50943396]
[1758750495150,2.19369099,212.01,212.0,17.22943396]
[1758750496060,28.19369099,212.01,212.0,17.22943396]
[1758750497060,2.19369099,212.01,212.0,17.22943396]
[1758750497845,2.19369099,212.01,211.97,0.1]
[1758750497846,13.59559401,212.0,211.97,0.1]
[1758750498136,13.59559401,212.0,211.98,4.71736232]
[1758750498344,14.28559401,212.0,211.98,4.71736232]
[1758750498554,26.11073006,212.0,211.98,4.71736232]
[1758750498951,26.80073006,212.0,211.98,4.71736232]
[1758750499458,15.789285,211.99,211.98,4.71736232]
[1758750500461,52.619285,211.99,211.98,4.71736232]
[1758750501161,15.789285,211.99,211.98,4.71736232]
[1758750513681,18.95709679,211.99,211.98,4.71736232]
[1758750514682,20.19632173,211.99,211.98,4.71736232]
[1758750515985,20.89632173,211.99,211.98,4.71736232]
[1758750516178,20.19632173,211.99,211.98,4.71736232]
[1758750518482,20.19632173,211.99,211.98,4.71736232]
[1758750530993,13.59559401,211.98,211.97,0.1]
[1758750531184,16.7634058,211.98,211.97,0.1]
[1758750531388,17.4334058,211.98,211.97,0.1]
[1758750531581,20.19632173,211.98,211.97,0.1]
[1758750531778,20.19632173,211.98,211.97,0.75]
[1758750531983,20.19632173,211.98,211.97,0.1]
[1758750532179,6.60072772,211.98,211.97,4.81764872]
[1758750532384,6.60072772,211.98,211.97,5.46764872]
[1758750535276,32.60072772,211.98,211.97,5.46764872]
[1758750535879,6.60072772,211.98,211.97,5.46764872]
[1758750536083,3.43291593,211.99,211.97,5.46764872]
[1758750536283,29.43291593,211.99,211.98,0.65]
[1758750536496,32.60615756,211.99,211.98,0.65]
[1758750536911,29.43291593,211.99,211.98,0.65]
[1758750538203,29.43291593,211.99,211.98,5.36742617]
[1758750541302,32.60789592,211.99,211.98,5.36742617]
[1758750543400,32.60789592,211.99,211.98,4.71742617]
[1758750543987,32.60789592,211.99,211.98,0.67]
[1758750544509,29.17497999,211.99,211.98,0.67]
[1758750544701,32.60789592,211.99,211.98,0.67]
[1758750545089,32.60789592,211.99,211.97,4.81760332]
[1758750545283,29.43291593,211.99,211.97,5.48760332]
[1758750547413,3.43291593,211.98,211.97,5.48760332]
[1758750549018,26.0,211.99,211.97,5.48760332]
[1758750549218,3.43291593,211.98,211.97,5.48760332]
[1758750552696,3.43291593,211.98,211.97,4.81760332]
[1758750553514,6.60698947,211.98,211.97,4.81760332]
[1758750553717,3.17407354,211.98,211.97,4.81760332]
[1758750554021,6.60698947,211.98,211.97,5.48760332]
[1758750555222,3.17407354,211.98,211.97,5.48760332]
[1758750559021,26.0,211.99,211.97,5.48760332]
[1758750563232,4.15291593,212.0,211.97,5.48760332]
[1758750563430,3.17337977,211.99,211.97,5.48760332]
[1758750563608,4.15291593,212.0,211.97,5.48760332]
[1758750563808,3.1733801,211.99,211.97,5.48760332]
[1758750564017,4.15291593,212.0,211.97,5.48760332]
[1758750564215,3.17337977,211.99,211.97,5.48760332]
[1758750564432,4.15291593,212.0,211.97,5.48760332]
[1758750564629,3.17339847,211.99,211.97,5.48760332]
[1758750564832,4.15291593,212.0,211.97,5.48760332]
[1758750565017,3.17339813,211.99,211.97,5.48760332]
[1758750565221,4.15291593,212.0,211.97,5.48760332]
[1758750565423,3.17341901,211.99,211.97,5.48760332]
[1758750565612,4.15291593,212.0,211.97,5.48760332]
[1758750565812,3.17341901,211.99,211.97,5.48760332]
[1758750566013,3.43291593,212.0,211.97,5.48760332]
[1758750566208,3.17350418,211.99,211.97,5.48760332]
[1758750566408,3.43291593,212.0,211.97,5.48760332]
[1758750566614,26.0,212.02,211.98,0.7]
[1758750566815,3.17370633,212.01,211.98,0.7]
[1758750567119,13.59559401,212.05,211.98,0.7]
[1758750567330,3.17345317,212.04,211.98,0.7]
[1758750567635,3.17345317,212.03,211.98,0.7]
[1758750567808,3.17345317,212.02,211.98,0.7]
[1758750568015,29.43291593,212.05,211.98,0.7]
[1758750568337,3.17345618,212.04,211.98,0.7]
[1758750568538,3.17345618,212.03,211.99,16.51021274]
[1758750568743,3.17345618,212.02,212.0,0.7]
[1758750569038,3.43291593,212.04,212.0,0.7]
[1758750569241,3.17224803,212.03,212.0,0.7]
[1758750569541,3.17224803,212.02,212.0,0.7]
[1758750569719,3.17196325,212.03,212.01,16.50865524]
[1758750569919,3.43291593,212.04,212.02,0.7]
[1758750571741,3.43291593,212.04,212.03,4.71631372]
[1758750571938,6.60228614,212.04,212.03,4.71631372]
[1758750572756,3.43291593,212.04,212.03,4.71631372]
[1758750573332,3.43291593,212.04,212.03,5.41631372]
[1758750573922,6.60108656,212.04,212.03,5.41631372]
[1758750574122,6.60108656,212.04,212.03,4.71631372]
[1758750575543,3.16817063,212.04,212.03,0.7]
[1758750575744,3.16817063,212.07,212.03,0.7]
[1758750575935,3.16817063,212.07,212.03,12.4918966]
[1758750576136,3.16817063,212.07,212.04,0.7]
[1758750576829,2.19488119,212.08,212.04,0.7]
[1758750577029,2.19488119,212.08,212.05,3.43291593]
[1758750577238,2.19488119,212.08,212.06,0.7]
[1758750577729,2.19488119,212.08,212.07,4.71542415]
[1758750577932,28.19488119,212.09,212.07,4.71542415]
[1758750580456,2.19488119,212.08,212.07,4.71542415]
[1758750580757,28.19488119,212.09,212.07,5.41542415]
[1758750580967,2.19488119,212.1,212.08,0.7]
[1758750581254,2.19488119,212.1,212.07,31.38469404]
[1758750581445,2.19488119,212.09,212.07,31.38469404]
[1758750582247,2.19488119,212.1,212.08,0.7]
[1758750582451,2.19488119,212.11,212.08,0.7]
[1758750582956,2.19488119,212.11,212.09,4.71497948]
[1758750583336,2.19488119,212.11,212.1,0.7]
[1758750583537,2.19488119,212.11,212.1,3.86420717]
[1758750583728,2.19488119,212.12,212.1,3.86420717]
[1758750583929,2.19488119,212.13,212.11,0.7]
[1758750584458,2.19488119,212.16,212.12,0.7]
[1758750584657,28.19488119,212.17,212.12,0.7]
[1758750584843,2.19488119,212.17,212.12,14.87735876]
[1758750585154,2.19488119,212.17,212.13,17.19931645]
[1758750585363,2.19488119,212.17,212.14,0.7]
[1758750585549,2.19488119,212.17,212.15,0.7]
[1758750585738,26.67,212.19,212.15,0.7]
[1758750585935,2.19488119,212.18,212.15,0.7]
[1758750586340,2.19488119,212.18,212.16,14.17400959]
[1758750586662,2.86488119,212.18,212.16,14.17400959]
[1758750586954,2.86488119,212.18,212.17,4.71320167]
[1758750587855,2.19488119,212.18,212.17,4.71320167]
[1758750593163,2.89488119,212.18,212.17,4.71320167]
[1758750593463,2.19488119,212.18,212.17,4.71320167]
[1758750593667,2.19488119,212.18,212.16,4.71342383]
[1758750593872,2.19488119,212.17,212.16,5.37342383]
[1758750594064,2.19488119,212.18,212.16,17.1569834]
[1758750595273,2.19488119,212.18,212.16,19.35186459]
[1758750595456,2.19488119,212.18,212.16,17.1569834]
[1758750596174,2.19488119,212.18,212.17,6.90808286]
[1758750597852,0.7,212.2,212.17,19.35108705]
[1758750597853,2.19488119,212.2,212.17,19.35108705]
[1758750598068,0.2,212.21,212.18,0.66]
[1758750598272,0.2,212.21,212.19,2.19488119]
[1758750598472,0.2,212.21,212.2,0.66]
[1758750598849,0.2,212.21,212.2,3.05488119]
[1758750599375,0.2,212.21,212.2,5.24976238]
[1758750601046,0.2,212.21,212.2,7.76741653]
[1758750605985,0.2,212.21,212.2,9.96229772]
[1758750606272,1e-08,212.21,212.2,9.96229772]
[1758750609987,1e-08,212.21,212.2,29.96229772]
[1758750610293,1e-08,212.21,212.2,9.96229772]
[1758750610502,1e-08,212.21,212.2,29.96229772]
[1758750611899,1e-08,212.21,212.2,66.02229772]
[1758750612400,1e-08,212.21,212.2,79.61789173]
[1758750612775,1e-08,212.26,212.25,26.0]
[1758750613090,1e-08,212.26,212.25,64.25488119]
[1758750613281,1e-08,212.26,212.25,66.14332157]
[1758750613486,1e-08,212.26,212.25,66.82332157]
[1758750614600,1e-08,212.26,212.25,71.53474677]
[1758750622705,2.19488119,212.35,212.25,104.67555462]
[1758750622884,2.19488119,212.35,212.28,2.19488119]
[1758750623084,2.19488119,212.35,212.29,36.04]
[1758750623279,2.19488119,212.35,212.29,50.20330288]
[1758750623479,2.19488119,212.35,212.3,16.48610456]
[1758750623786,2.19488119,212.35,212.31,36.04]
[1758750624608,2.19488119,212.35,212.32,4.70987189]
[1758750624802,2.19488119,212.33,212.32,4.70987189]
[1758750625113,0.67,212.35,212.32,4.70987189]
[1758750625290,2.19488119,212.33,212.32,4.70987189]
[1758750625610,0.67,212.35,212.32,4.70987189]
[1758750625813,2.19488119,212.33,212.32,4.70987189]
[1758750626582,2.19488119,212.33,212.31,4.71009373]
[1758750627604,2.19488119,212.34,212.31,4.71009373]
[1758750628488,2.19488119,212.33,212.31,4.71009373]
[1758750630692,2.19488119,212.34,212.31,4.71009373]
[1758750631192,3.27092927,212.36,212.31,4.71009373]
[1758750631492,2.19488119,212.34,212.31,4.71009373]
[1758750632017,3.27092927,212.36,212.31,4.71009373]
[1758750632214,2.19488119,212.34,212.31,4.71009373]
[1758750634906,13.59559401,212.36,212.31,4.71009373]
[1758750635116,2.19488119,212.34,212.31,4.71009373]
[1758750635616,2.19488119,212.35,212.31,4.71009373]
[1758750636686,3.42097411,212.35,212.31,4.71009373]
[1758750637716,14.33047521,212.37,212.31,16.48532805]
[1758750637897,3.42097411,212.34,212.31,16.48532805]
[1758750638512,14.33047521,212.37,212.31,16.48532805]
[1758750638715,3.42097411,212.35,212.31,16.48532805]
[1758750639291,17.01656812,212.34,212.3,4.71031559]
[1758750639516,3.42097411,212.32,212.3,4.71031559]
[1758750639913,40.26559401,212.34,212.3,4.71031559]
[1758750639914,3.42097411,212.33,212.3,4.71031559]
[1758750642418,3.42097411,212.33,212.29,11.77628143]
[1758750645808,3.42097411,212.33,212.29,12.47628143]
[1758750646824,3.42097411,212.33,212.3,0.7]
[1758750647324,3.42097411,212.33,212.31,4.71009373]
[1758750650122,29.42097411,212.34,212.31,4.71009373]
[1758750653405,3.16813618,212.33,212.31,4.71009373]
[1758750653600,29.42097411,212.34,212.31,4.71009373]
[1758750653805,3.16813618,212.33,212.31,4.71009373]
[1758750654006,29.42097411,212.34,212.31,4.71009373]
[1758750654228,3.16813618,212.33,212.31,4.71009373]
[1758750654430,29.42097411,212.34,212.31,4.71009373]
[1758750654634,3.16875253,212.33,212.31,4.71009373]
[1758750654812,29.42097411,212.34,212.31,4.71009373]
[1758750655011,3.16875253,212.33,212.31,4.71009373]
[1758750655340,29.42097411,212.34,212.31,4.71009373]
[1758750655529,3.1695197,212.33,212.31,4.71009373]
[1758750655838,29.42097411,212.34,212.31,4.71009373]
[1758750656019,3.16952003,212.33,212.31,4.71009373]
[1758750656213,29.42097411,212.34,212.31,4.71009373]
[1758750656411,3.17046611,212.33,212.31,4.71009373]
[1758750656621,29.42097411,212.34,212.31,5.39009373]
[1758750656828,3.17050171,212.33,212.31,5.39009373]
[1758750657031,29.42097411,212.34,212.31,5.39009373]
[1758750657233,3.17050204,212.33,212.31,5.39009373]
[1758750657421,20.84707016,212.32,212.27,0.68]
[1758750657621,6.59147615,212.31,212.27,0.68]
[1758750657818,3.17050204,212.3,212.27,0.68]
[1758750658140,4.08097411,212.31,212.27,0.68]
[1758750658429,3.17080448,212.3,212.27,0.68]
[1758750658636,4.08097411,212.31,212.28,4.71075937]
[1758750658935,3.17055862,212.3,212.28,4.71075937]
[1758750659128,4.08097411,212.31,212.28,4.71075937]
[1758750659835,0.66,212.31,212.26,11.77748786]
[1758750660135,3.42097411,212.31,212.27,0.68]
[1758750660343,4.09097411,212.31,212.27,0.71]
[1758750660831,3.42097411,212.31,212.28,0.71]
[1758750661040,0.67,212.32,212.28,5.42075937]
[1758750661239,6.59107027,212.31,212.28,5.42075937]
[1758750661432,3.42097411,212.31,212.28,5.42075937]
[1758750662036,0.67,212.32,212.28,5.42075937]
[1758750662233,6.59086132,212.31,212.28,5.42075937]
[1758750662537,3.42097411,212.31,212.28,5.42075937]
[1758750663243,4.09097411,212.32,212.28,5.42075937]
[1758750663541,3.16953641,212.31,212.28,5.42075937]
[1758750663740,4.09097411,212.32,212.28,5.42075937]
[1758750664039,3.16953641,212.31,212.28,5.42075937]
[1758750664243,4.09097411,212.32,212.28,5.42075937]
[1758750664417,3.16943183,212.31,212.28,5.42075937]
[1758750664741,3.42097411,212.32,212.29,0.71]
[1758750664942,3.169433,212.31,212.3,0.71]
[1758750665638,3.169433,212.31,212.29,0.71]
[1758750665943,3.42097411,212.32,212.3,4.71031559]
[1758750666143,3.1693267,212.31,212.3,4.71031559]
[1758750672130,3.1693267,212.31,212.26,16.48921134]
[1758750672335,3.42097411,212.32,212.27,0.71]
[1758750672537,3.42097411,212.3,212.27,0.71]
[1758750673445,3.42097411,212.3,212.28,4.71075937]
[1758750673645,3.42097411,212.3,212.29,0.71]
[1758750674331,3.42097411,212.3,212.29,5.42053747]
[1758750694659,3.42097411,212.31,212.29,5.42053747]
[1758750696576,2.19019896,212.31,212.29,5.42053747]
[1758750699293,3.16734211,212.3,212.29,5.42053747]
[1758750701080,2.19019896,212.31,212.29,5.42053747]
[1758750705881,3.16783922,212.3,212.29,5.42053747]
[1758750709683,2.19019896,212.31,212.29,5.42053747]
[1758750710769,2.19019896,212.31,212.27,11.77690442]
[1758750710974,2.19019896,212.31,212.28,0.66]
[1758750711381,2.19019896,212.32,212.28,0.66]
[1758750711582,5.35836376,212.31,212.28,0.66]
[1758750711878,26.0,212.33,212.28,0.66]
[1758750712086,3.16821742,212.32,212.28,0.66]
[1758750712388,3.16821742,212.31,212.28,0.66]
[1758750712684,26.0,212.33,212.28,0.66]
[1758750712987,3.16809839,212.32,212.28,0.66]
[1758750713281,3.16809839,212.31,212.29,4.71053747]
[1758750713478,26.0,212.33,212.29,16.48688115]
[1758750713780,3.16805291,212.32,212.3,0.66]
[1758750713970,26.0,212.33,212.3,0.66]
[1758750714172,3.16805307,212.32,212.3,0.66]
[1758750714469,26.0,212.33,212.3,0.66]
[1758750714672,3.16789795,212.32,212.31,4.71009373]
[1758750715065,3.16789795,212.32,212.31,5.37009373]
[1758750717084,26.0,212.33,212.31,5.37009373]
[1758750717661,28.19019896,212.33,212.31,5.37009373]
[1758750719690,28.19019896,212.33,212.3,16.48610456]
[1758750720196,28.19019896,212.33,212.31,0.66]
[1758750720403,26.0,212.33,212.31,0.66]
[1758750720570,28.19019896,212.33,212.3,16.48610456]
[1758750720890,26.0,212.33,212.32,0.68]
[1758750721584,26.0,212.33,212.32,5.38987189]
[1758750722585,2.19019896,212.34,212.32,5.38987189]
[1758750728684,2.19019896,212.35,212.33,0.68]
[1758750729473,2.19019896,212.36,212.33,0.68]
[1758750729777,2.19019896,212.36,212.34,0.68]
[1758750730500,2.19019896,212.36,212.35,4.70920649]
[1758750738623,2.19019896,212.36,212.34,5.38939805]
[1758750738798,2.19019896,212.35,212.34,5.38939805]
[1758750742614,2.19019896,212.35,212.34,4.70939805]
[1758750744287,2.19019896,212.35,212.34,0.66]
[1758750745312,2.19019896,212.35,212.34,5.36942827]
[1758750748714,2.19019896,212.36,212.34,5.36942827]
[1758750749609,2.19019896,212.36,212.35,0.66]
[1758750750600,2.19019896,212.36,212.35,5.36920649]
[1758750753017,16.35350184,212.36,212.35,5.36920649]
[1758750756898,16.35350184,212.36,212.33,0.66]
[1758750758627,14.16330288,212.36,212.33,0.66]
[1758750760225,14.16330288,212.36,212.34,0.66]
[1758750763328,3.16659691,212.35,212.34,4.70942827]
[1758750769124,3.16659691,212.35,212.32,11.77452649]
[1758750769304,14.16330288,212.36,212.34,0.66]
[1758750769507,3.16740191,212.35,212.34,0.66]
[1758750770031,3.16740191,212.35,212.32,11.77452649]
[1758750770233,14.16330288,212.36,212.32,16.48439838]
[1758750770417,3.16788343,212.35,212.32,16.48439838]
[1758750770728,14.16330288,212.36,212.33,0.66]
[1758750770917,3.16769747,212.35,212.33,0.66]
[1758750771102,14.16330288,212.36,212.33,0.66]
[1758750771308,14.16330288,212.36,212.34,4.70942827]
[1758750771506,3.16766311,212.35,212.34,4.70942827]
[1758750772528,3.16766311,212.35,212.34,5.41942827]
[1758750792257,3.16798077,212.35,212.34,5.41942827]
[1758750813244,17.33128365,212.35,212.34,5.41942827]
[1758750813446,14.16330288,212.35,212.34,5.41942827]
[1758750813875,0.0648812,212.37,212.34,41.37942827]
[1758750814167,3.17379461,212.36,212.35,0.67]
[1758750815495,3.17379461,212.36,212.35,5.37920649]
[1758750819381,0.0648812,212.37,212.35,5.37920649]
[1758750819574,14.22617837,212.37,212.36,0.67]
[1758750819784,17.39910585,212.37,212.36,0.67]
[1758750820077,3.23780868,212.37,212.36,0.67]
[1758750820588,3.23780868,212.37,212.36,5.37898474]
[1758750821275,17.39910585,212.37,212.36,5.37898474]
[1758750822074,3.23780868,212.37,212.36,5.37898474]
[1758750823070,0.0648812,212.37,212.36,5.37898474]
[1758750823466,0.0648812,212.37,212.36,19.53961347]
[1758750825066,0.0648812,212.37,212.36,55.49961347]
[1758750830891,0.0648812,212.37,212.36,19.53961347]
[1758750831194,0.0648812,212.37,212.36,54.82961347]
[1758750831795,0.7348812,212.37,212.36,40.66898474]
[1758750831998,2.92377319,212.37,212.36,40.66898474]
[1758750832385,2.25377319,212.37,212.36,40.66898474]
[1758750832695,5.17754638,212.37,212.36,40.66898474]
[1758750832891,2.98865439,212.37,212.36,40.66898474]
[1758750837283,2.98865439,212.37,212.36,41.35898474]
[1758750840205,2.98865439,212.37,212.36,40.66898474]
[1758750842705,2.98865439,212.37,212.36,41.32898474]
[1758750843208,2.98865439,212.37,212.36,40.66898474]
[1758750843391,2.98865439,212.37,212.36,35.94]
[1758750843600,2.98865439,212.37,212.36,38.92865439]
[1758750844507,2.98865439,212.37,212.36,7.69763913]
[1758750844706,2.98865439,212.37,212.36,44.29763913]
[1758750845016,2.98865439,212.37,212.36,40.64898474]
[1758750848194,2.98865439,212.37,212.36,41.30898474]
[1758750848395,2.98865439,212.37,212.36,44.29763913]
[1758750853321,2.98865439,212.37,212.36,8.35763913]
[1758750853623,2.98865439,212.37,212.36,44.29763913]
[1758750862326,0.0648812,212.37,212.36,44.29763913]
[1758750872645,0.0648812,212.37,212.36,41.30898474]
[1758750882258,0.0648812,212.37,212.36,43.19671215]
[1758750888262,0.0648812,212.37,212.36,7.25671215]
[1758750888447,0.0648812,212.37,212.36,43.17671215]
[1758750891964,0.0648812,212.37,212.36,46.59549682]
[1758750916874,0.2,212.38,212.36,46.59549682]
[1758750917088,0.2,212.38,212.37,4.08878467]
[1758750918102,0.2,212.38,212.37,10.685186]
[1758750920703,0.2,212.38,212.37,46.605186]
[1758750921414,0.2,212.38,212.37,60.85592408]
[1758750921799,0.2,212.39,212.37,60.85592408]
[1758750921995,0.2,212.39,212.38,0.66]
[1758750922310,0.2,212.39,212.38,4.07878467]
[1758750922513,0.2,212.39,212.38,5.96624486]
[1758750922981,0.2,212.39,212.38,41.86624486]
[1758750923683,0.2,212.4,212.38,46.57478615]
[1758750923906,0.2,212.4,212.39,4.07878467]
[1758750924813,0.2,212.4,212.39,5.9661558]
[1758750925011,0.2,212.4,212.39,45.9144754]
[1758750925585,0.2,212.4,212.39,46.5744754]
[1758750925911,0.2,212.4,212.39,42.49569073]
[1758750926088,0.2,212.4,212.39,45.9144754]
[1758750929509,0.2,212.4,212.39,46.5744754]
[1758750933115,0.2,212.4,212.39,10.6744754]
[1758750933529,0.2,212.4,212.39,46.5744754]
[1758750935295,0.2,212.4,212.39,10.0144754]
[1758750935595,0.2,212.4,212.39,45.9144754]
[1758750936593,0.2,212.4,212.39,10.6744754]
[1758750936799,0.2,212.4,212.39,46.5744754]
[1758750942530,0.2,212.4,212.39,45.34268681]
[1758750946934,0.2,212.4,212.39,9.44268681]
[1758750947133,0.2,212.4,212.39,45.34268681]
[1758750948838,0.2,212.4,212.39,44.68268681]
[1758750953244,0.87,212.4,212.39,44.68268681]
[1758750953417,0.2,212.4,212.39,44.68268681]
[1758750954647,0.2,212.4,212.39,8.78268681]
[1758750954947,0.2,212.4,212.39,44.68268681]
[1758750957249,0.2,212.4,212.39,45.38268681]
[1758750959648,0.2,212.4,212.39,44.68268681]
[1758750965254,0.2,212.4,212.39,45.36268681]
[1758750966360,0.2,212.4,212.39,44.68268681]
[1758750967845,0.2,212.4,212.39,45.36268681]
[1758750970558,0.2,212.4,212.39,43.17569073]
[1758750970759,0.2,212.4,212.39,45.36268681]
[1758750978146,0.2,212.4,212.39,43.17569073]
[1758750978348,0.2,212.4,212.39,45.36268681]
[1758750979142,0.2,212.4,212.39,43.17569073]
[1758750979369,0.2,212.4,212.39,45.36268681]
[1758750989987,0.2,212.4,212.39,43.17569073]
[1758750990282,0.2,212.4,212.39,45.36268681]
[1758750990957,0.2,212.4,212.39,43.17569073]
[1758750991159,0.2,212.4,212.39,42.49569073]
[1758750991381,0.2,212.4,212.39,37.78737113]
[1758750991563,0.2,212.4,212.39,39.97436721]
[1758750991887,0.2,212.4,212.39,45.36268681]
[1758750992072,0.2,212.4,212.39,9.46268681]
[1758750992262,0.2,212.4,212.39,45.34268681]
[1758750993168,13.59559401,212.32,212.21,4.71231327]
[1758750993370,39.59559401,212.29,212.22,1.88924312]
[1758750993580,2.18699608,212.23,212.22,25.10924312]
[1758750993964,5.35220935,212.23,212.22,23.22]
[1758750994160,6.89930935,212.23,212.22,23.22]
[1758750994576,6.89930935,212.23,212.22,27.93209122]
[1758750996175,6.89930935,212.23,212.19,4.71231327]
[1758750996176,20.49490336,212.23,212.19,4.71231327]
[1758750996381,20.49490336,212.23,212.17,29.78]
[1758750996382,2.18699608,212.21,212.17,29.78]
[1758750996582,2.18699608,212.19,212.17,29.1]
[1758750997072,13.59559401,212.23,212.17,29.1]